bitfinex/quotes_SOLUSD_20220105
["timestamp","ask_amount","ask_price","bid_price","bid_amount"]
[1641373737800,2.40360278,170.03,169.9,32.52309054]
[1641373738002,1.64360278,170.02,169.9,32.78309054]
[1641373738203,1.64360278,170.02,169.91,1.2549]
[1641373738501,1.64360278,170.01,169.91,1.5149]
[1641373738702,1.64360278,170.01,169.91,26.4669]
[1641373738902,2.40360278,170.01,169.91,26.4669]
[1641373739504,0.5,170.01,169.91,26.4669]
[1641373739905,2.40360278,170.02,169.91,26.4669]
[1641373740708,0.76,170.02,169.91,26.4669]
[1641373740908,0.26,170.02,169.91,26.4669]
[1641373741107,10.5636,170.03,169.91,26.4669]
[1641373741306,10.5636,170.03,169.91,104.3089]
[1641373741807,12.20720278,170.03,169.91,104.3089]
[1641373742506,11.94720278,170.03,169.91,104.3089]
[1641373742709,3.38720278,170.03,169.91,104.3089]
[1641373743506,1.7436,170.03,169.91,104.3089]
[1641373743907,2.0036,170.03,169.91,104.8089]
[1641373744107,2.0036,170.03,169.91,104.3089]
[1641373749714,2.0036,170.03,169.91,104.0489]
[1641373750112,3.64720278,170.03,169.91,104.0489]
[1641373750516,24.7052,170.02,169.91,104.0489]
[1641373750719,26.34880278,170.02,169.91,104.0489]
[1641373750915,27.10880278,170.02,169.91,104.0489]
[1641373751519,27.10880278,170.02,169.91,104.3089]
[1641373751717,29.8053793,170.1,169.92,51.0]
[1641373751918,1.6314868,170.01,169.91,104.3089]
[1641373752619,17.3899,170.04,169.91,104.3089]
[1641373753018,18.86836154,170.04,169.91,104.3089]
[1641373753220,19.62836154,170.04,169.91,104.3089]
[1641373758528,19.36836154,170.04,169.91,104.0489]
[1641373758729,10.53846154,170.04,169.91,104.0489]
[1641373758929,9.06,170.04,169.91,104.0489]
[1641373760132,19.62806154,170.04,169.91,104.0489]
[1641373760331,10.79846154,170.04,169.91,26.2069]
[1641373761362,8.8304,170.03,169.91,26.2069]
[1641373761660,8.56,170.02,169.91,26.2069]
[1641373761859,9.06,170.02,169.91,26.4669]
[1641373762059,9.32,170.02,169.91,26.4669]
[1641373766765,9.32,170.02,169.91,26.2069]
[1641373768066,9.32,170.02,169.91,26.4669]
[1641373768968,9.06,170.02,169.91,26.4669]
[1641373769969,9.32,170.02,169.91,26.4669]
[1641373770974,9.32,170.02,169.91,26.2069]
[1641373771773,10.79846154,170.02,169.91,26.2069]
[1641373772375,10.79846154,170.02,169.91,26.4669]
[1641373772779,9.32,170.02,169.91,26.4669]
[1641373777080,10.79846154,170.02,169.91,1.2549]
[1641373777281,10.79846154,170.02,169.87,1.371]
[1641373777481,26.56668254,170.02,169.88,1.2358]
[1641373777883,26.56668254,170.02,169.89,2.91161598]
[1641373778482,8.8322,169.99,169.89,2.91161598]
[1641373778680,8.56,169.98,169.89,2.91161598]
[1641373778881,9.06,169.98,169.89,3.17161598]
[1641373779082,9.32,169.98,169.89,3.17161598]
[1641373779482,9.32,169.98,169.9,1.3651]
[1641373780909,0.5,169.98,169.9,1.3651]
[1641373781108,0.5,169.98,169.9,8.0141]
[1641373781309,9.06,170.01,169.9,9.49256154]
[1641373782109,9.32,170.01,169.9,9.49256154]
[1641373782309,9.32,170.01,169.91,23.8527]
[1641373782509,9.32,170.01,169.92,30.69872865]
[1641373783010,9.32,170.01,169.92,30.95872865]
[1641373783409,9.06,170.01,169.93,1.2644]
[1641373783610,9.06,170.01,169.93,1.5244]
[1641373783810,9.06,170.01,169.93,24.7092]
[1641373784611,9.06,170.01,169.93,24.4492]
[1641373785415,9.06,170.01,169.93,25.92766154]
[1641373785816,9.06,170.01,169.93,24.4492]
[1641373786015,9.06,170.01,169.93,24.7092]
[1641373787016,0.5,170.01,169.93,24.7092]
[1641373787418,17.2855,170.04,169.93,24.7092]
[1641373787419,18.0455,170.04,169.93,24.7092]
[1641373789017,17.7855,170.04,169.93,24.7092]
[1641373789216,9.06,170.04,169.93,24.7092]
[1641373790515,9.32,170.04,169.93,26.18766154]
[1641373791217,9.32,170.04,169.93,24.7092]
[1641373792017,9.06,170.04,169.93,26.18766154]
[1641373792219,9.06,170.04,169.93,26.68766154]
[1641373793820,9.06,170.04,169.93,25.2092]
[1641373803228,9.06,170.04,169.93,24.7092]
[1641373803626,9.06,170.04,169.93,24.4492]
[1641373804326,0.5,170.04,169.93,24.4492]
[1641373804526,0.5,170.04,169.93,24.9492]
[1641373804726,9.1645,170.05,169.93,24.9492]
[1641373804927,9.1645,170.05,169.93,25.2092]
[1641373805327,9.1645,170.05,169.93,101.2978]
[1641373806831,9.4245,170.05,169.93,101.2978]
[1641373808732,9.1645,170.05,169.93,101.2978]
[1641373808932,9.1645,170.05,169.93,100.7978]
[1641373809136,9.1645,170.05,169.93,101.2978]
[1641373817066,0.5,170.05,169.93,101.2978]
[1641373817467,9.06,170.07,169.93,101.2978]
[1641373817667,9.32,170.07,169.93,101.2978]
[1641373818470,9.32,170.07,169.93,100.7978]
[1641373818869,9.32,170.07,169.93,101.3578]
[1641373824277,9.32,170.07,169.93,100.8578]
[1641373825478,9.32,170.07,169.93,101.3578]
[1641373828080,9.06,170.07,169.93,101.3578]
[1641373829484,9.32,170.07,169.93,101.3578]
[1641373833386,9.32,170.07,169.93,102.83626154]
[1641373834188,9.32,170.07,169.93,101.3578]
[1641373838595,9.06,170.07,169.93,101.3578]
[1641373838998,9.06,170.07,169.93,101.0978]
[1641373839901,9.32,170.07,169.93,101.0978]
[1641373840823,18.148,170.07,169.93,101.0978]
[1641373841322,18.148,170.07,169.93,101.3578]
[1641373841522,18.148,170.07,169.93,100.8578]
[1641373841925,8.8286,170.06,169.93,24.5092]
[1641373842223,8.56,170.05,169.93,24.5092]
[1641373842426,9.06,170.05,169.93,0.06]
[1641373842624,9.32,170.05,169.93,0.06]
[1641373844831,75.77499416,170.05,169.93,0.06]
[1641373845033,3.26297359,170.03,169.93,0.06]
[1641373845231,17.3911,170.02,169.93,0.06]
[1641373845430,17.8911,170.02,169.93,0.06]
[1641373845631,18.1511,170.02,169.93,0.06]
[1641373845931,9.32,170.02,169.93,0.06]
[1641373846731,9.06,170.02,169.93,0.06]
[1641373847633,15.034,170.02,169.93,0.06]
[1641373848230,15.294,170.02,169.93,0.06]
[1641373849637,9.32,170.02,169.93,0.06]
[1641373850938,6.14411814,170.01,169.93,0.06]
[1641373851339,9.32,170.02,169.93,0.06]
[1641373858347,9.06,170.02,169.93,0.06]
[1641373859876,9.32,170.02,169.93,0.06]
[1641373861278,85.0,170.01,169.9,1.0809]
[1641373861480,94.06,170.01,169.9,1.0809]
[1641373861679,94.32,170.01,169.9,0.8209]
[1641373861879,94.32,170.01,169.9,1.0809]
[1641373862281,94.06,170.01,169.9,1.0809]
[1641373863282,94.06,170.01,169.9,0.8209]
[1641373863481,94.32,170.01,169.9,0.8209]
[1641373863779,94.06,170.01,169.9,0.8209]
[1641373864981,94.32,170.01,169.9,0.8209]
[1641373872789,1.65736697,170.0,169.9,0.8209]
[1641373872990,2.15736697,170.0,169.9,0.8209]
[1641373873190,2.41736697,170.0,169.9,0.8209]
[1641373873993,0.06,169.99,169.9,0.8209]
[1641373874892,1.71736697,169.99,169.9,0.8209]
[1641373875099,1.97736697,169.99,169.9,0.8209]
[1641373875295,2.47736697,169.99,169.9,0.8209]
[1641373875696,11.03736697,169.99,169.9,0.8209]
[1641373875897,1.65736697,169.98,169.9,0.8209]
[1641373876095,1.91736697,169.98,169.9,0.8209]
[1641373876295,2.41736697,169.98,169.9,0.8209]
[1641373877695,0.76,169.98,169.9,0.8209]
[1641373877897,0.26,169.98,169.9,0.8209]
[1641373878094,11.03736697,169.99,169.9,0.8209]
[1641373878294,1.65736697,169.98,169.9,0.8209]
[1641373878497,2.41736697,169.98,169.9,0.8209]
[1641373880097,2.41736697,169.98,169.88,2.47642762]
[1641373880499,26.05016697,169.98,169.89,1.2769]
[1641373881000,26.05016697,169.98,169.89,1.5369]
[1641373884603,25.79016697,169.98,169.89,1.5369]
[1641373885830,26.05016697,169.98,169.89,1.5369]
[1641373886035,0.06,169.97,169.89,1.2769]
[1641373886732,0.06,169.97,169.89,1.5369]
[1641373887932,1.71736697,169.97,169.89,1.5369]
[1641373888535,2.21736697,169.97,169.89,1.5369]
[1641373889433,0.56,169.97,169.89,1.5369]
[1641373889834,0.06,169.97,169.89,1.5369]
[1641373893638,0.06,169.97,169.89,6.8169]
[1641373893842,0.06,169.97,169.9,22.6726]
[1641373894037,0.06,169.97,169.9,31.4926]
[1641373894238,0.06,169.97,169.9,31.9926]
[1641373895937,0.06,169.97,169.91,1.3569]
[1641373896138,2.41736697,170.01,169.91,1.3569]
[1641373896139,0.06,170.0,169.91,1.3569]
[1641373896340,8.56,169.99,169.9,22.6726]
[1641373896538,0.06,169.98,169.9,22.6726]
[1641373896839,10.37156154,169.98,169.9,22.6726]
[1641373897038,10.63156154,169.98,169.88,1.3403]
[1641373897239,1.65736697,169.96,169.88,1.3403]
[1641373897439,2.15736697,169.96,169.88,1.3403]
[1641373897640,2.41736697,169.96,169.88,1.3403]
[1641373901744,2.41736697,169.96,169.83,8.56]
[1641373901942,0.06,169.95,169.8,80.6901]
[1641373902144,8.56,169.94,169.81,26.75510611]
[1641373902343,10.53846154,169.94,169.82,1.2835]
[1641373902543,10.79846154,169.94,169.82,1.5435]
[1641373902743,10.79846154,169.94,169.83,2.15169761]
[1641373903546,12.45582851,169.94,169.83,2.15169761]
[1641373903743,10.97736697,169.94,169.83,2.41169761]
[1641373904346,10.71736697,169.94,169.83,2.41169761]
[1641373904744,10.71736697,169.94,169.84,1.3025]
[1641373905044,10.71736697,169.94,169.84,1.5625]
[1641373905746,9.06,169.94,169.84,1.5625]
[1641373905946,9.32,169.94,169.84,1.5625]
[1641373906247,10.97736697,169.94,169.84,1.5625]
[1641373907248,9.32,169.94,169.84,1.5625]
[1641373907948,10.97736697,169.94,169.84,1.5625]
[1641373908149,2.41736697,169.94,169.84,1.5625]
[1641373908350,2.15736697,169.94,169.84,2.0625]
[1641373908551,2.15736697,169.94,169.84,1.5625]
[1641373909055,0.5,169.94,169.84,2.0625]
[1641373909455,2.15736697,169.96,169.84,2.0625]
[1641373909652,0.5,169.96,169.84,2.0625]
[1641373909852,1.47846154,169.96,169.84,2.0625]
[1641373910053,1.73846154,169.96,169.84,2.0625]
[1641373910353,2.23846154,169.96,169.84,2.0625]
[1641373913653,2.23846154,169.96,169.84,1.5625]
[1641373915855,3.89582851,169.96,169.84,1.5625]
[1641373918055,12.45582851,169.96,169.84,1.3025]
[1641373918856,8.8947,169.95,169.84,1.3025]
[1641373919056,1.65736697,169.94,169.84,1.3025]
[1641373919258,0.06,169.93,169.84,1.3025]
[1641373919655,1.71736697,169.93,169.84,1.3025]
[1641373919858,2.21736697,169.93,169.84,1.3025]
[1641373920057,2.47736697,169.93,169.84,1.3025]
[1641373920457,3.95582851,169.93,169.84,1.3025]
[1641373922257,1.65736697,169.92,169.84,1.3025]
[1641373922458,2.15736697,169.92,169.84,1.3025]
[1641373922665,2.41736697,169.92,169.84,1.3025]
[1641373922860,0.76,169.92,169.84,1.5625]
[1641373923259,2.47736697,169.93,169.84,1.5625]
[1641373923460,2.21736697,169.93,169.84,1.5625]
[1641373924464,0.56,169.93,169.84,1.5625]
[1641373925061,0.06,169.93,169.84,1.5625]
[1641373926790,1.71736697,169.93,169.84,1.5625]
[1641373927191,0.56,169.93,169.84,1.5625]
[1641373927791,0.06,169.93,169.84,1.5625]
[1641373930496,0.06,169.93,169.84,1.3025]
[1641373930696,19.80156697,169.94,169.84,1.3025]
[1641373930697,0.06,169.91,169.84,1.3025]
[1641373930896,0.06,169.91,169.83,2.15169761]
[1641373931099,0.06,169.91,169.82,23.9036]
[1641373931596,0.06,169.91,169.83,1.3394]
[1641373932099,0.06,169.91,169.84,27.58743888]
[1641373932496,0.06,169.91,169.84,2.67395803]
[1641373933096,0.06,169.91,169.84,2.93395803]
[1641373934897,0.06,169.91,169.84,0.26]
[1641373935099,0.06,169.91,169.83,1.5994]
[1641373935899,0.06,169.91,169.83,4.50447019]
[1641373937407,0.06,169.91,169.83,4.24447019]
[1641373938708,0.06,169.91,169.83,4.50447019]
[1641373938907,0.06,169.91,169.83,4.24447019]
[1641373941110,0.06,169.91,169.83,4.50447019]
[1641373953851,0.06,169.91,169.83,5.00447019]
[1641373954050,0.06,169.91,169.83,4.50447019]
[1641373956052,0.06,169.93,169.83,1.5994]
[1641373956954,0.06,169.93,169.84,2.16602533]
[1641373957154,1.71736697,169.93,169.84,2.16602533]
[1641373957453,11.03736697,169.93,169.82,23.9036]
[1641373957656,12.51582851,169.93,169.82,23.9036]
[1641373958455,12.51582851,169.93,169.82,26.32500201]
[1641373958655,1.65736697,169.91,169.82,26.32500201]
[1641373958857,2.15736697,169.91,169.82,26.32500201]
[1641373959056,3.89582851,169.91,169.82,26.32500201]
[1641373961760,3.89582851,169.91,169.83,1.3363]
[1641373965759,3.63582851,169.91,169.83,1.5963]
[1641373966261,1.97846154,169.91,169.83,1.5963]
[1641373967060,2.23846154,169.91,169.83,1.5963]
[1641373968162,3.89582851,169.91,169.83,1.5963]
[1641373969160,2.23846154,169.91,169.83,1.5963]
[1641373970162,2.23846154,169.91,169.83,1.3363]
[1641373970363,8.3858408,169.91,169.83,1.3363]
[1641373971167,10.04320777,169.91,169.83,1.3363]
[1641373973071,8.3858408,169.91,169.83,1.3363]
[1641373976675,10.04320777,169.91,169.83,1.3363]
[1641373978777,10.10320777,169.91,169.83,1.3363]
[1641373979379,1.65736697,169.9,169.83,1.3363]
[1641373979577,1.91736697,169.9,169.83,1.3363]
[1641373979782,1.47846154,169.89,169.83,1.3363]
[1641373979979,2.23846154,169.89,169.82,26.32500201]
[1641373981084,2.23846154,169.89,169.81,1.2927]
[1641373982080,2.23846154,169.89,169.81,3.6928185]
[1641373982280,2.23846154,169.89,169.82,23.9286]
[1641373983091,2.23846154,169.89,169.81,2.4001185]
[1641373983392,2.23846154,169.89,169.81,3.6793185]
[1641374014764,10.91226154,169.95,169.81,2.0392]
[1641374014958,10.91226154,169.95,169.81,26.3482]
[1641374015162,1.97846154,169.95,169.81,26.3482]
[1641374017160,6.14596527,169.94,169.81,26.3482]
[1641374017364,6.64596527,169.94,169.81,26.3482]
[1641374018066,6.64596527,169.94,169.81,25.8482]
[1641374018264,6.64596527,169.94,169.81,1.5392]
[1641374018763,6.64596527,169.94,169.81,25.18]
[1641374050322,15.5251193,169.96,169.81,10.0992]
[1641374051019,17.00358084,169.96,169.81,10.0992]
[1641374059260,17.00358084,169.96,169.81,9.8392]
[1641374060458,17.00358084,169.96,169.81,10.0992]
[1641374062060,15.2651193,169.96,169.81,10.0992]
[1641374062461,15.2651193,169.96,169.81,11.57766154]
[1641374062662,15.2651193,169.96,169.81,12.07766154]
[1641374063262,9.12,169.96,169.81,10.5992]
[1641374063561,9.12,169.96,169.81,12.07766154]
[1641374064363,9.12,169.96,169.81,10.5992]
[1641374064563,9.38,169.96,169.81,10.5992]
[1641374064766,9.38,169.96,169.82,1.47846154]
[1641374064965,9.38,169.96,169.82,10.79846154]
[1641374068072,9.38,169.96,169.82,9.32]
[1641374068671,9.38,169.96,169.82,9.06]
[1641374069777,9.38,169.96,169.82,8.56]
[1641374069978,10.85846154,169.96,169.82,8.56]
[1641374071079,10.85846154,169.96,169.82,8.82]
[1641374071781,19.69276154,169.96,169.82,8.82]
[1641374076816,19.43276154,169.96,169.82,8.82]
[1641374078015,19.69276154,169.96,169.82,8.82]
[1641374078813,19.69276154,169.96,169.82,9.32]
[1641374079015,6.14666263,169.95,169.82,9.32]
[1641374079315,15.20666263,169.95,169.82,8.82]
[1641374079714,15.20666263,169.95,169.82,9.32]
[1641374079916,15.20666263,169.95,169.82,8.82]
[1641374080518,15.20666263,169.95,169.82,9.32]
[1641374080716,15.20666263,169.95,169.82,8.82]
[1641374080917,15.46666263,169.95,169.82,8.82]
[1641374092735,9.32,169.95,169.82,8.82]
[1641374093537,9.38,169.95,169.82,8.82]
[1641374093836,19.69326154,169.95,169.82,8.56]
[1641374094036,22.76227351,169.95,169.82,8.56]
[1641374094239,35.05708621,169.95,169.82,8.56]
[1641374095240,35.05708621,169.95,169.81,3.80827677]
[1641374095441,35.05708621,169.95,169.81,4.06827677]
[1641374095840,35.05708621,169.95,169.81,1.5392]
[1641374096040,14.98214788,169.94,169.81,1.2792]
[1641374096241,8.62,169.93,169.81,1.2792]
[1641374096441,10.59846154,169.93,169.81,1.2792]
[1641374096642,10.85846154,169.93,169.81,1.2792]
[1641374097242,8.8364,169.92,169.81,1.2792]
[1641374097445,0.06,169.91,169.81,1.2792]
[1641374106077,8.62,169.91,169.81,1.2792]
[1641374106376,9.12,169.91,169.81,1.2792]
[1641374106578,9.38,169.91,169.81,1.2792]
[1641374106879,9.32,169.91,169.81,1.2792]
[1641374107078,17.9891,169.91,169.81,1.2792]
[1641374108680,18.0491,169.91,169.81,1.2792]
[1641374110381,17.7891,169.91,169.81,1.2792]
[1641374110585,17.7891,169.91,169.81,1.5392]
[1641374110784,17.7891,169.91,169.81,1.2792]
[1641374110983,17.7291,169.91,169.81,1.2792]
[1641374111385,23.87491602,169.91,169.81,1.2792]
[1641374111884,25.61337756,169.91,169.81,1.2792]
[1641374113089,25.67337756,169.91,169.81,1.2792]
[1641374118406,25.41337756,169.91,169.81,1.2792]
[1641374118604,25.67337756,169.91,169.81,1.2792]
[1641374125810,1.65846996,169.9,169.81,1.2792]
[1641374126011,10.47846996,169.9,169.81,1.2792]
[1641374126215,10.97846996,169.9,169.81,1.2792]
[1641374126713,6.14574799,169.89,169.81,1.2792]
[1641374126916,6.64574799,169.89,169.81,1.2792]
[1641374127116,6.90574799,169.89,169.81,1.2792]
[1641374137551,6.64574799,169.89,169.81,1.2792]
[1641374137950,0.5,169.89,169.81,1.2792]
[1641374138353,15.31478842,169.91,169.81,1.2792]
[1641374138752,15.57478842,169.91,169.81,1.2792]
[1641374139352,17.05324996,169.91,169.81,1.2792]
[1641374139956,18.71171992,169.91,169.81,1.2792]
[1641374140355,8.56,169.9,169.81,1.2792]
[1641374140556,8.82,169.9,169.81,1.2792]
[1641374140757,1.47846154,169.89,169.81,1.2792]
[1641374140957,1.97846154,169.89,169.81,1.5392]
[1641374141155,0.5,169.89,169.81,1.5392]
[1641374141657,10.71846996,169.9,169.81,1.2792]
[1641374141855,10.71846996,169.9,169.81,1.5392]
[1641374142057,9.06,169.9,169.81,1.5392]
[1641374143458,9.32,169.9,169.81,1.5392]
[1641374144458,9.06,169.9,169.81,1.5392]
[1641374144858,0.5,169.9,169.81,1.5392]
[1641374145260,3.6369315,169.92,169.81,1.5392]
[1641374145458,1.97846154,169.92,169.81,1.5392]
[1641374146059,2.23846154,169.92,169.81,1.5392]
[1641374151264,1.97846154,169.92,169.81,1.5392]
[1641374151863,1.97846154,169.92,169.81,2.0392]
[1641374154168,1.97846154,169.92,169.81,1.5392]
[1641374154366,1.97846154,169.92,169.81,2.0392]
[1641374155595,1.47846154,169.92,169.82,25.45257075]
[1641374155798,10.21846996,169.95,169.82,25.45257075]
[1641374155994,10.21846996,169.95,169.82,26.21257075]
[1641374156394,8.56,169.95,169.82,26.21257075]
[1641374156595,3.1369315,169.96,169.82,26.21257075]
[1641374156596,3.1369315,169.96,169.82,34.77257075]
[1641374156996,1.47846154,169.94,169.82,34.77257075]
[1641374157196,3.6369315,169.96,169.82,34.77257075]
[1641374157397,3.8969315,169.96,169.82,34.51257075]
[1641374157595,3.8969315,169.96,169.82,34.01257075]
[1641374158296,3.8969315,169.96,169.83,79.7165]
[1641374158496,3.8969315,169.96,169.83,79.9765]
[1641374159899,2.15846996,169.96,169.83,85.0065]
[1641374160100,2.15846996,169.96,169.84,8.56]
[1641374160499,2.15846996,169.96,169.84,9.32]
[1641374161299,0.76,169.96,169.84,8.82]
[1641374161500,0.5,169.96,169.84,8.82]
[1641374161699,0.37078746,169.96,169.84,8.82]
[1641374162001,9.7326,170.0,169.84,8.82]
[1641374162400,11.21106154,170.0,169.84,8.82]
[1641374163001,0.35122698,169.99,169.84,8.82]
[1641374163400,1.82968852,169.99,169.84,8.82]
[1641374163601,2.58968852,169.99,169.84,8.82]
[1641374164201,1.11122698,169.99,169.84,8.82]
[1641374164401,0.61122698,169.99,169.84,8.82]
[1641374164605,0.85122698,169.99,169.84,8.82]
[1641374165302,0.35122698,169.99,169.84,8.82]
[1641374165904,23.23222698,169.99,169.85,23.2773]
[1641374166104,23.49222698,169.99,169.86,8.56]
[1641374166303,23.99222698,169.99,169.86,8.56]
[1641374166506,23.99222698,169.99,169.88,2.29513128]
[1641374167004,23.73222698,169.99,169.88,2.55513128]
[1641374169509,23.99222698,169.99,169.88,2.55513128]
[1641374170711,23.99222698,169.99,169.88,11.11513128]
[1641374170912,6.14460025,169.98,169.89,24.6951]
[1641374171112,6.40460025,169.98,169.89,24.9551]
[1641374171314,6.90460025,169.98,169.89,24.9551]
[1641374176319,0.5,169.98,169.89,24.9551]
[1641374176718,8.7342,170.01,169.89,24.9551]
[1641374176919,9.2342,170.01,169.89,24.9551]
[1641374177118,9.4942,170.01,169.89,24.9551]
[1641374177321,9.4942,170.01,169.89,25.4551]
[1641374177521,9.4942,170.01,169.89,24.9551]
[1641374180329,9.2342,170.01,169.89,24.9551]
[1641374180726,9.2342,170.01,169.9,8.56]
[1641374180924,9.2342,170.01,169.9,13.74]
[1641374181223,9.2342,170.01,169.9,14.0]
[1641374181423,9.2342,170.01,169.9,14.5]
[1641374181625,9.2342,170.01,169.9,13.74]
[1641374181826,9.4942,170.01,169.91,1.3655]
[1641374182527,9.4942,170.01,169.91,31.812]
[1641374182927,9.2342,170.01,169.91,31.812]
[1641374183124,9.2342,170.01,169.91,32.072]
[1641374184427,9.2342,170.01,169.91,25.593]
[1641374184625,10.71266154,170.01,169.91,25.593]
[1641374184825,9.2342,170.01,169.91,25.333]
[1641374185528,9.4942,170.01,169.91,25.333]
[1641374186130,9.4942,170.01,169.91,25.593]
[1641374188436,8.9942,170.01,169.91,25.593]
[1641374188636,8.7342,170.01,169.91,41.082]
[1641374188883,8.7342,170.01,169.91,41.582]
[1641374189278,8.7342,170.01,169.91,41.082]
[1641374189878,9.2342,170.01,169.91,41.082]
[1641374190080,9.4942,170.01,169.91,41.082]
[1641374190285,9.87746762,170.01,169.91,41.082]
[1641374191182,9.61746762,170.01,169.91,41.082]
[1641374192181,9.2342,170.01,169.91,41.082]
[1641374192381,8.7342,170.01,169.91,41.582]
[1641374193181,8.7342,170.01,169.91,41.082]
[1641374193982,9.2342,170.01,169.91,41.082]
[1641374194384,9.2342,170.01,169.91,33.893]
[1641374194882,9.4942,170.01,169.91,33.893]
[1641374195983,9.4942,170.01,169.91,34.153]
[1641374196785,9.2342,170.01,169.91,34.153]
[1641374196986,9.2342,170.01,169.91,25.593]
[1641374197587,5.57973218,170.0,169.82,24.85]
[1641374197788,8.8336,169.98,169.82,24.85]
[1641374197989,0.06,169.97,169.82,24.85]
[1641374198191,7.49152705,169.97,169.82,24.85]
[1641374198391,2.03846154,169.97,169.82,24.85]
[1641374198592,15.99152705,169.96,169.83,4.03996635]
[1641374198791,0.06,169.95,169.83,4.03996635]
[1641374198991,16.05152705,169.95,169.83,4.03996635]
[1641374199190,14.57306551,169.95,169.83,4.03996635]
[1641374199394,1.47846154,169.94,169.83,4.03996635]
[1641374199791,2.23846154,169.94,169.83,4.03996635]
[1641374200292,1.47846154,169.93,169.83,4.03996635]
[1641374200493,2.23846154,169.93,169.83,4.03996635]
[1641374200894,1.47846154,169.92,169.83,4.03996635]
[1641374201294,0.06,169.91,169.8,1.2566]
[1641374201493,0.06,169.91,169.77,8.56]
[1641374201694,1.47846154,169.9,169.77,8.56]
[1641374201894,1.97846154,169.9,169.77,8.56]
[1641374202094,2.23846154,169.9,169.77,8.56]
[1641374202293,1.47846154,169.89,169.78,26.93963608]
[1641374202495,0.5,169.89,169.78,26.93963608]
[1641374202696,0.5,169.89,169.79,1.3289]
[1641374203096,2.23846154,169.91,169.79,1.5889]
[1641374208023,2.23846154,169.91,169.79,2.0889]
[1641374209625,1.97846154,169.91,169.79,2.0889]
[1641374209826,1.47846154,169.91,169.79,2.0889]
[1641374210028,1.47846154,169.91,169.8,8.56]
[1641374210230,1.47846154,169.91,169.81,23.014]
[1641374210430,1.47846154,169.91,169.81,23.514]
[1641374210631,1.47846154,169.91,169.81,23.774]
[1641374210830,1.47846154,169.91,169.81,23.274]
[1641374211033,1.47846154,169.91,169.82,1.2414]
[1641374211430,1.47846154,169.91,169.82,1.5014]
[1641374211835,1.47846154,169.91,169.82,2.0014]
[1641374212332,1.47846154,169.91,169.83,8.56]
[1641374212531,1.47846154,169.91,169.83,8.82]
[1641374212733,1.97846154,169.91,169.83,9.32]
[1641374212934,2.23846154,169.91,169.83,9.32]
[1641374213333,1.97846154,169.91,169.83,9.32]
[1641374213535,1.97846154,169.91,169.84,1.3683]
[1641374213933,1.97846154,169.91,169.84,2.1283]
[1641374214334,1.97846154,169.91,169.84,1.6283]
[1641374214634,1.97846154,169.91,169.84,4.2038559]
[1641374215636,1.97846154,169.91,169.84,1.6283]
[1641374218642,1.97846154,169.91,169.84,27.35115079]
[1641374218874,1.97846154,169.91,169.84,1.6283]
[1641374220740,0.5,169.91,169.84,1.6283]
[1641374220940,0.06,169.94,169.84,1.6283]
[1641374221441,39.35868792,169.95,169.84,1.6283]
[1641374223042,42.43100064,169.95,169.84,1.6283]
[1641374223843,42.43100064,169.95,169.84,2.1283]
[1641374225646,6.14680935,169.94,169.84,2.1283]
[1641374225846,6.64680935,169.94,169.84,2.1283]
[1641374226046,6.90680935,169.94,169.84,2.1283]
[1641374227246,6.90680935,169.94,169.84,1.6283]
[1641374231554,6.90680935,169.94,169.84,24.407]
[1641374231953,8.38527089,169.94,169.79,8.56]
[1641374232153,8.56,169.93,169.8,23.8489]
[1641374232454,8.8368,169.91,169.8,23.8489]
[1641374232653,17.3968,169.91,169.8,23.8489]